Cogmind - Beta 9.6 *** ADVENTURER MODE // 2020.07.11 @ 23:10:01 Player: lcbb_tuk Result: Destroyed by Y-45 Defender with Beam Rifle Performance ------------- Evolutions (2) 1000 Regions Visited (4) 800 Robots Destroyed (36) 180 Value Destroyed (1216) 1216 Prototype IDs (1) 20 Alien Tech Used (0) 0 Bonus (0) 0 TOTAL SCORE: 3216 Bonus ------- None Cogmind --------- Core Integrity 0/550 Matter 249/300 Energy 100/100 System Corruption 3% Temperature Cool (18) Movement Core (50) Location -8/Materials Parts ------- > --- POWER (3) -------- (None) > --- PROPULSION (2) --- (None) > --- UTILITY (4) ------ (None) > --- WEAPON (2) ------- (None) > --- INVENTORY (4) ---- (None) Peak State ------------ > --- POWER ------------ Light Nuclear Core > --- PROPULSION ------- Armored Treads Armored Treads > --- UTILITY ---------- Shield Generator Shield Generator Shield Generator Shield Generator > --- WEAPON ----------- Pulse Rifle Pulse Rifle > --- INVENTORY -------- Improved Ion Engine Light Treads EM Shotgun EM Shotgun [Rating: 23] Favorites ----------- Power Light Ion Engine Engine Light Ion Engine Power Core Light Nuclear Core Propulsion Aluminum Leg Treads Armored Treads Leg Aluminum Leg Wheel Compact Wheel Flight Unit Improved Flight Unit Utility Shield Generator Device Shield Generator Storage Small Storage Unit Hackware Hacking Suite Protection Light Armor Plating Weapon Light Assault Rifle Energy Gun Pulse Rifle Energy Cannon Heavy Particle Cannon Ballistic Gun Light Assault Rifle Ballistic Cannon Flak Cannon Impact Weapon Hammer Build | -11 -10 -9 -9 -8 ------- Run | Scr Mat Mat Min Mat Slots Evolved 4 | . . 2 . 2 Power 2 | . . . . 2 Propulsion . | . . . . . Utility 2 | . . 2 . . Weapon . | . . . . . Parts Attached 50 | 8 5 17 . 20 Power 8 | 1 1 3 . 3 Engine 6 | 1 1 2 . 2 Core 2 | . . 1 . 1 Reactor . | . . . . . Propulsion 13 | 4 . 5 . 4 Treads 5 | . . 4 . 1 Leg 3 | 2 . 1 . . Wheel 2 | 2 . . . . Hover . | . . . . . Flight 3 | . . . . 3 Utility 12 | 1 3 3 . 5 Device 9 | . 2 3 . 4 Storage 1 | 1 . . . . Processor . | . . . . . Hackware 1 | . . . . 1 Protection 1 | . 1 . . . Artifact . | . . . . . Weapon 17 | 2 1 6 . 8 Energy Gun 12 | . 1 6 . 5 Energy Cannon 1 | . . . . 1 Ballistic Gun 2 | 2 . . . . Ballistic Cannon 1 | . . . . 1 Launcher . | . . . . . Special Weapon . | . . . . . Impact Weapon 1 | . . . . 1 Slashing Weapon . | . . . . . Piercing Weapon . | . . . . . Special Melee Weapon . | . . . . . Unidentified Prototypes 1 | . . . . 1 Parts Lost 18 | . 1 1 8 8 Power 3 | . . . 1 2 Propulsion 3 | . . . 1 2 Utility 5 | . . . 4 1 Weapon 7 | . 1 1 2 3 Highest Loss Streak 8 | . 1 1 8 5 Average Slot Usage (%) 85 | . 97 99 79 42 Engine 6 | . 14 5 . 2 Core 4 | . . 5 8 4 Treads 4 | . . 4 18 . Leg 14 | . 28 17 . . Flight 2 | . . . . 11 Device 26 | . 4 44 35 7 Storage 2 | . 11 . . . Protection 2 | . 11 . . . Energy Gun 11 | . 8 13 17 9 Ballistic Gun 8 | . 18 8 . . Naked Turns 25 | . . . 15 10 Heaviest Build 25 | 9 13 19 19 25 Greatest Support 40 | 26 20 40 40 20 Greatest Overweight (x) 3 | 2 . . . 3 Average Overweight (x) . | . . . . . Largest Inventory Capacity 6 | 6 6 4 4 4 Average Capacity 4 | 5 5 4 4 4 Most Carried 6 | 6 6 4 4 4 Average Carried 3 | 2 4 3 4 2 Final Capacity 6 | 6 4 4 4 4 Final Carried 4 | 4 4 4 4 . Class Distribution -------------------- 91% | Mutant 8% | Hacker-Mutant Dominant Class ---------------- Mutant | -10/Materials Mutant | -9/Materials Mutant | -9/Mines Hacker-Mutant | -8/Materials Resources | -11 -10 -9 -9 -8 ----------- Run | Scr Mat Mat Min Mat Matter Collected 724 | 165 145 239 . 175 Remotely . | . . . . . Salvage Created 1260 | . 145 696 115 304 Parts 73 | . 7 39 10 17 Haulers Intercepted . | . . . . . Recyclers Shooed 3 | . 1 1 . 1 Parts Field Recycled . | . . . . . Retrieved Matter . | . . . . . Parts Self-Destructed . | . . . . . Prevented . | . . . . . Kills | -11 -10 -9 -9 -8 ------- Run | Scr Mat Mat Min Mat Combat Hostiles Destroyed 35 | . 3 16 6 10 Guns 26 | . 3 16 6 1 Cannons 8 | . . . . 8 Classes Destroyed 5 | . 2 2 1 . Watcher 1 | . 1 . . . Swarmer 7 | . . . 4 3 Grunt 18 | . 3 10 1 4 Brawler 4 | . . 1 1 2 Sentry 6 | . . 5 . 1 Best Kill Streak 6 | . 3 4 4 6 Combat Bots Only 6 | . 2 4 4 6 Max Kills in Single Turn 2 | . 1 1 2 1 Gunslinging 1 | . . . 1 . Exploded . | . . . . . Melee . | . . . . . Uniques/NPCs Destroyed . | . . . . . Combat | -11 -10 -9 -9 -8 -------- Run | Scr Mat Mat Min Mat Damage Taken 2521 | 1 305 370 714 1131 Core 843 | . 60 49 180 554 Absorbed by Shields 247 | . . 138 88 21 Core Remaining (%) 72 | 100 76 . 42 . Volleys Fired 117 | . 26 50 15 26 Largest 2 | . 2 2 2 2 Hottest 126 | . 60 126 126 90 Shots Fired 193 | . 43 91 29 30 Gun 173 | . 43 91 29 10 Cannon 20 | . . . . 20 Launcher . | . . . . . Special . | . . . . . Kinetic 75 | . 36 26 . 13 Thermal 92 | . . 56 29 7 Explosive . | . . . . . Electromagnetic 26 | . 7 9 . 10 Robot Hit Streak 26 | . 11 20 26 18 Robot Miss Streak 5 | . 1 1 1 5 Penetration Max . | . . . . . Secondary Targets 3 | . . 1 2 . Max Gunslinging Chain 1 | . . 1 1 . Shots Hit Robots 171 | . 35 75 26 35 Core Hits 80 | . 14 29 9 28 Critical Hits 1 | . . . . 1 Critical Kills . | . . . . . Critical Parts Destroyed 1 | . . . . 1 Melee Attacks 6 | . . . . 6 Impact 6 | . . . . 6 Slashing . | . . . . . Piercing . | . . . . . Sneak Attacks . | . . . . . Combat Hostiles . | . . . . . Follow-up Attacks . | . . . . . Damage Inflicted 2510 | 3 342 950 434 781 Guns 1845 | . 342 944 430 129 Cannons 557 | . . . . 557 Explosions . | . . . . . Melee 90 | . . . . 90 Ramming 18 | 3 . 6 4 5 Kinetic 754 | . 248 124 . 382 Thermal 1340 | . . 735 430 175 Explosive . | . . . . . Electromagnetic 308 | . 94 85 . 129 Impact 90 | . . . . 90 Slashing . | . . . . . Piercing . | . . . . . Highest Corruption 3 | . . . 3 3 Average Corruption 2 | . . . 1 3 Corruption Purged . | . . . . . Effects 1 | . . . . 1 Message Errors 1 | . . . . 1 Overload Shots . | . . . . . Overflow Damage 4 | . . . . 4 Projectiles 4 | . . . . 4 Explosions . | . . . . . Melee . | . . . . . Knockbacks 9 | . . . . 9 Impact . | . . . . . Kinetic 9 | . . . . 9 Secondary . | . . . . . Self-Inflicted Damage 2 | 1 . . . 1 Shots . | . . . . . Rammed 12 | 1 . 2 4 5 Targets Rammed 13 | 1 . 3 4 5 Kicked 1 | . . 1 . . Crushed . | . . . . . Highest Temperature 415 | . 142 415 330 223 Average Temperature 115 | . 52 132 159 69 Received Heat Transfer 1169 | . 225 176 182 586 Effects 5 | . . 3 1 1 Shutdowns 1 | . . 1 . . Energy Bleed 4 | . . 2 1 1 Siege Activations . | . . . . . Robots Corrupted 1 | . . . . 1 Combat Hostiles 1 | . . . . 1 Parts Fried 2 | . . 1 . 1 Impact Corruptions . | . . . . . Robots Melted . | . . . . . Combat Hostiles . | . . . . . Parts Melted 4 | . . 3 1 . Heat Transferred 2997 | . . 1813 925 259 Parts Sabotaged . | . . . . . Parts Stolen . | . . . . . Parts Stripped . | . . . . . Power Chain Reactions . | . . . . . Missiles Intercepted . | . . . . . Alert | -11 -10 -9 -9 -8 ------- Run | Scr Mat Mat Min Mat Peak Influence 281 | . 93 281 207 281 Average Influence 84 | . 28 96 164 104 Maximum Alert Level 1 | . . 1 1 1 Low Security (%) 91 | 100 100 95 57 89 Level 1 8 | . . 4 42 10 Level 2 . | . . . . . Level 3 . | . . . . . Level 4 . | . . . . . Level 5 . | . . . . . High Security . | . . . . . Max Security . | . . . . . Squads Dispatched 6 | . . 3 . 3 Investigation 1 | . . 1 . . Extermination . | . . . . . Reinforcement 3 | . . 2 . 1 Assault . | . . . . . Garrison 2 | . . . . 2 Intercept . | . . . . . Construction Impeded . | . . . . . Haulers Reinforced . | . . . . . Stealth | -11 -10 -9 -9 -8 --------- Run | Scr Mat Mat Min Mat Distress Signals 4 | . . 3 . 1 Communications Jammed . | . . . . . Distress Signals . | . . . . . Times Spotted 71 | . 8 29 13 21 Peak Tracking Total 10 | . 3 5 10 6 Tactical Retreats 6 | . 1 1 1 3 Traps | -11 -10 -9 -9 -8 ------- Run | Scr Mat Mat Min Mat Traps Triggered 4 | . . 1 . 3 Indirectly . | . . . . . Trap Hack Attempts . | . . . . . Triggered . | . . . . . Disarmed . | . . . . . Reprogrammed . | . . . . . Reused . | . . . . . Traps Extracted . | . . . . . Installed . | . . . . . Triggered 1 | . 1 . . . Machines | -11 -10 -9 -9 -8 ---------- Run | Scr Mat Mat Min Mat Machines Disabled . | . . . . . Max in Single Turn . | . . . . . Machines Sabotaged . | . . . . . Garrisons Compromised . | . . . . . Overloaded Fab Kills . | . . . . . Fab Network Shutdowns . | . . . . . Hacking | -11 -10 -9 -9 -8 --------- Run | Scr Mat Mat Min Mat Machines Accessed 8 | . 3 3 1 1 Terminals 6 | . 3 1 1 1 Fabricators . | . . . . . Repair Stations 1 | . . 1 . . Recycling Units . | . . . . . Scanalyzers 1 | . . 1 . . Garrison Access . | . . . . . Total Hacks 24 | . 6 9 7 2 Successful 17 | . 3 8 5 1 Failed 7 | . 3 1 2 1 Catastrophic 1 | . 1 . . . Database Lockouts . | . . . . . Manual . | . . . . . Terminals 18 | . 6 3 7 2 Fabricators . | . . . . . Repair Stations 3 | . . 3 . . Recycling Units . | . . . . . Scanalyzers 3 | . . 3 . . Garrison Access . | . . . . . Terminal Hacks 12 | . 3 3 5 1 Record 6 | . 1 2 3 . Security Status 1 | . . 1 . . Surveillance Status 1 | . 1 . . . Patrol Status 1 | . . . . 1 Investigation Status 1 | . . . 1 . Hauler Manifests 1 | . 1 . . . Zone Layout 1 | . . . 1 . Fabricator Hacks . | . . . . . Repair Station Hacks 3 | . . 3 . . Scan Component 1 | . . 1 . . Repair 1 | . . 1 . . Refit 1 | . . 1 . . Recycling Unit Hacks . | . . . . . Scanalyzer 2 | . . 2 . . Insert Component 1 | . . 1 . . Analyze 1 | . . 1 . . Garrison Access Hacks . | . . . . . Unauthorized Hacks . | . . . . . Terminals . | . . . . . Fabricators . | . . . . . Repair Stations . | . . . . . Recycling Units . | . . . . . Scanalyzers . | . . . . . Garrison Access . | . . . . . Data Cores Recovered . | . . . . . Used . | . . . . . Hacking Detections 6 | . 2 2 1 1 Full Trace Events . | . . . . . Feedback Events . | . . . . . Feedback Blocked . | . . . . . Robot Schematics Acquired . | . . . . . Robots Built . | . . . . . Matter . | . . . . . Time . | . . . . . Total Robot Build Rating . | . . . . . Part Schematics Acquired 1 | . . 1 . . Parts Built . | . . . . . Matter . | . . . . . Time . | . . . . . Total Part Build Rating . | . . . . . Parts Repaired 1 | . . 1 . . Time 26 | . . 26 . . Parts Recycled . | . . . . . Recycled Matter . | . . . . . Retrieved Matter . | . . . . . Retrieved Components . | . . . . . Parts Scanalyzed 1 | . . 1 . . Part Schematics Acquired 1 | . . 1 . . Parts Damaged . | . . . . . Bothacking | -11 -10 -9 -9 -8 ------------ Run | Scr Mat Mat Min Mat Used RIF Installer . | . . . . . Robots Hacked . | . . . . . Non-combat . | . . . . . Combat . | . . . . . Robot Hacks Applied . | . . . . . Relay Couplers Released . | . . . . . Robots Rewired . | . . . . . Allies Hacked . | . . . . . Hacks Repelled . | . . . . . Allies | -11 -10 -9 -9 -8 -------- Run | Scr Mat Mat Min Mat Total Allies . | . . . . . Largest Group . | . . . . . Highest-Rated Group . | . . . . . Highest-Rated Ally . | . . . . . Total Orders . | . . . . . Ally Attacks . | . . . . . Total Damage . | . . . . . Kills . | . . . . . Allies Corrupted . | . . . . . Allies Melted . | . . . . . Intel | -11 -10 -9 -9 -8 ------- Run | Scr Mat Mat Min Mat Robot Analysis Total . | . . . . . Derelict Logs Recovered 1 | . . . 1 . Drone Launches . | . . . . . Drone Recoveries . | . . . . . Exploration | -11 -10 -9 -9 -8 ------------- Run | Scr Mat Mat Min Mat Turns Passed 2119 | 105 485 926 217 386 Spaces Moved 1318 | 90 340 577 114 197 Core 109 | 22 . . 31 56 Treads 187 | . . 81 83 23 Legs 855 | 19 340 496 . . Wheels 49 | 49 . . . . Hover . | . . . . . Flight 118 | . . . . 118 Fastest Speed 32 | 50 120 120 50 32 Average Speed 121 | 91 120 126 137 115 Slowest Speed 245 | 150 120 170 170 245 Overloaded Moves . | . . . . . Propulsion Burnouts . | . . . . . Robots Hopped . | . . . . . Cave-ins Triggered . | . . . . . Exploration Rate (%) 29 | 4 56 32 33 21 Regions Visited 4 Branch Regions 1 Pre-discovered Areas 1 | . . . 1 . Known Exits Taken . | . . . . . Unknown Exits Taken 4 | 1 1 1 1 . Scrap Searched . | . . . . . Spaces Dug . | . . . . . Terrain Destroyed . | . . . . . Melee . | . . . . . Projectile . | . . . . . AOE . | . . . . . Actions | -11 -10 -9 -9 -8 --------- Run | Scr Mat Mat Min Mat Total 1633 | 110 381 691 142 309 Wait 97 | 4 2 32 10 49 Move 1315 | 90 339 576 113 197 Hop . | . . . . . Pick Up 12 | 6 4 2 . . Fast Attach 28 | 6 3 3 . 16 Attach 12 | 2 1 5 . 4 Detach . | . . . . . Swap 10 | . 1 9 . . Drop 24 | 2 5 11 . 6 Fire 117 | . 26 50 15 26 Melee 6 | . . . . 6 Ram 3 | . . . . 3 Kick 2 | . . 2 . . Crush 7 | . . 1 4 2 Escape Stasis . | . . . . . Rewire . | . . . . . Trap . | . . . . . Miscellaneous . | . . . . . Route ------- -11/Scrapyard -10/Materials (discovered 3 exits: *Mat / [*Min x2]) -9/Materials -9/Mines -8/Materials History --------- Turn | Location | Event 32 | -11/Scrapyard | Discovered new exit (range 14) 106 | -11/Scrapyard | Entered Materials 282 | -10/Materials | Discovered new exit (range 14) 326 | -10/Materials | Build established: Mutant 435 | -10/Materials | Discovered new exit (range 16) 506 | -10/Materials | Discovered new exit (range 13) 591 | -10/Materials | Entered another Materials area 591 | -9/Materials | Evolved 2 slots: Utility x2 654 | -9/Materials | Repaired EM Pulse Gun 1500 | -9/Materials | Discovered new exit (range 10) 1517 | -9/Materials | Entered Mines 1650 | -9/Mines | Assembled infested the area 1655 | -9/Mines | Assisted by a Guerilla fighting off Assembled 1722 | -9/Mines | Core integrity fell below 50% 1730 | -9/Mines | Discovered new exit (range 9) 1731 | -9/Mines | Learned location of Zion (-6) 1734 | -9/Mines | Entered Materials 1734 | -8/Materials | Evolved 2 slots: Power x2 1750 | -8/Materials | Lost 8 parts (1p1n4u2w) 2087 | -8/Materials | Lost 3 parts (1p1n1w) 2095 | -8/Materials | Core integrity fell below 50% 2115 | -8/Materials | Core integrity fell below 20% 2120 | -8/Materials | Destroyed by Y-45 Defender with Beam Rifle Last Messages --------------- 02081_ Y-45 Defender destroyed. 02083_ G-47 Trooper knocked back. 02088_ C-30 ARC bursts open, deploying its payload. 02088_ B-36 Bruiser unfolds itself. 02088_ G-47 Trooper unfolds itself. 02088_ Hacking Suite destroyed. 02088_ System corrupted by crushing effect (+3). 02091_ B-36 Bruiser destroyed. 02091_ G-47 Trooper knocked back. 02091_ Imp. Flight Unit destroyed. 02092_ Acquired 41 matter. 02093_ Destroyed Particle Gun. 02093_ G-47 Trooper destroyed. 02096_ Flak Cannon destroyed. 02097_ Acquired Rnf. Ion Engine. 02100_ Y-45 Defender emerges from the garrison. 02101_ Acquired Hammer. 02110_ Rnf. Ion Engine destroyed. 02111_ IXNVUAIBXCOUDB# 1Q3GJ>3=:%HK X83 KE 02115_ Hammer destroyed. Map ----- +----------------------------------------------------+ | T #???????????????????????????????????????????? | | #???????????????????????????????????????????? | | #???????????????????????????????????????????? | | #???????????????????????????????????????????? | | #???????????????????????????????????????????? | | ######???????????????????????????????????????????? | | ?????????????????????????????????????????????????? | | ?????????????????????????????????????????????????? | | ?????????????????????????????????????????????????? | | ?????????########????????????????????????????????? | | ########## #????????????????????????????????? | | # """ #????????????????????????????????? | | = # """ #????????????????????????????????? | | * # """ #????????????????????????????????? | | # #????????????????????????????????? | | / #????????????????????????????????? | | ########?????????#####??????????????????? | | "" """ #??????????????? #??????????????????? | | "" """ ###############? #??????????????????? | | "" """ = # ! #??????????????????? | | =% # !#??????????????????? | | ############ + #??????????????????? | | ########?########## # #??????????????????? | | #????????# [*########T######???????????? | | #????????# %!%%gg o #???????? | | #????????# =[g*@ #???????? | | ###????????# """ !"" #####+####+??????????? | | ???????????# """ G"Y #????????????????????? | | ???????????# ? """ "" #????????????????????? | | ?????????????? #????????????????????? | | ????????????? #????????????????????? | | ????????????##+## #????????????????????? | | ????????????????#############????????????????????? | | ?????????????????????????????????????????????????? | | ?????????????????????????????????????????????????? | | ?????????????????????????????????????????????????? | | ?????????????????????????????????????????????????? | | ?????????????????????????????????????????????????? | | | | | | | | | | | | | | | | | | | | | | | | | +----------------------------------------------------+ Best States ------------- Heat Dissipation 31 Energy Generation 21 Energy Capacity 405 Matter Stores 300 Matter Capacity 300 Sight Range 16 Terrain Scan Density 10 Armor Coverage 150 Resistance: KI 20 Resistance: TH 20 Resistance: EX 20 Resistance: EM 20 Resistance: I 20 Resistance: S 20 Resistance: P 20 Evasion (%) 63 Recoil Reduction 2 Offensive Hacking 20 Item Schematics ----------------- Beam Rifle | -9/Materials | Scanalyzed Robot Schematics ------------------ None Fabricated ------------ Nothing Alien Tech Used ----------------- None Achievements -------------- Slippery One Challenges ------------ None Game ------ Seed HellfireGhostLog Manual? 0 Play Time 00:30:20 Cumulative 18.8 hours Start 2020.07.11 @ 21:06:17 End 2020.07.11 @ 23:10:01 Sessions 1 Manual Loads 0 Difficulty Adventurer Special Mode None Game No. 28 Rogue 0 Adventurer 28 Explorer 0 Win Type - Total 0 Types 0/0/0/0/0/0/0 Lore% 20 Gallery% 23 Achievement% 17 Wizard Run 0 Options --------- ASCII 0 Keyboard 1 Movement Numpad Keybinds 0 Fullscreen 1 Font 12/Smallcaps Map View 83x54 Tactical HUD 1 Map Filters NONE Filters NONE Steam 1 RUN: 75bf5d4c-e3d6-4b95-8490-d853b9a3ffca